[Event "22nd Hoogeveen Open 2018"]
[Site "Hoogeveen"]
[Date "2018.10.22"]
[Round "4"]
[White "Wedda, Dries"]
[Black "Clemens, Adrian"]
[Result "1-0"]
[ECO "E70"]
[WhiteElo "2216"]
[BlackElo "2153"]
[Annotator "NA"]
[PlyCount "115"]
[EventDate "2018.10.20"]
[EventType "swiss"]
[EventCountry "NED"]
[SourceTitle "playchess.com"]
[Source "ChessBase"]
[SourceQuality "1"]
[TimeControl "40/5400+30:1800+30"]

1. d4 {[%emt 0:00:00]} Nf6 {[%emt 0:00:00]} 2. c4 {[%emt 0:00:00]} g6 {[%emt 0:00:12]} 3. Nc3 {[%emt 0:00:00]} Bg7 {[%emt 0:00:16]} 4. e4 {[%emt 0:00:00]} d6 {[%emt 0:00:09]} 5. Nge2 {[%emt 0:00:00]} O-O {[%emt 0:03:06]} 6. Ng3 {[%emt 0:00:10]} e5 {[%emt 0:10:49]} 7. d5 {[%emt 0:00:25]} h5 {[%emt 0:00:47]} 8. Be2 {[%emt 0:00:55]} h4 {[%emt 0:03:48]} 9. Nf1 {[%emt 0:00:09]} Nh7 {[%emt 0:00:49]} 10. Be3 {[%emt 0:00:16]} f5 {[%emt 0:06:35]} 11. exf5 {[%emt 0:01:15]} gxf5 {[%emt 0:00:20]} 12. g3 {[%emt 0:01:03]} Na6 {[%emt 0:05:30]} 13. f4 {[%emt 0:14:26]} Qe7 {[%emt 0:07:31]} 14. Qc2 {[%emt 0:25:41]} Nc5 {[%emt 0:04:53]} 15. O-O-O {[%emt 0:03:19]} Bd7 {[%emt 0:03:00]} 16. Re1 {[%emt 0:06:00]} exf4 {[%emt 0:10:40]} 17. gxf4 $14 {[%emt 0:05:55]} Kh8 {[%emt 0:03:56]} 18. Bf3 {[%emt 0:01:43]} Bf6 {[%emt 0:05:18]} 19. Nd2 {[%emt 0:01:31]} Qf7 {[%emt 0:03:50]} 20. Bd1 {[%emt 0:12:52]} Rg8 {[%emt 0:07:18]} 21. Bxc5 {[%emt 0:04:37]} dxc5 {[%emt 0:00:30]} 22. Nf3 {[%emt 0:00:04]} Bxc3 {[%emt 0:09:39]} 23. Qxc3+ {[%emt 0:00:16]} Qf6 {[%emt 0:00:08]} 24. Ne5 {[%emt 0:03:09]} Rg7 {[%emt 0:00:22]} 25. Bh5 {[%emt 0:01:42]} Be8 {[%emt 0:01:33]} 26. Bxe8 {[%emt 0:00:21]} Rxe8 {[%emt 0:00:06]} 27. Rhg1 {[%emt 0:03:50]} Reg8 {[%emt 0:00:49]} 28. Qe3 {[%emt 0:00:07]} b6 {[%emt 0:01:27]} 29. Qf2 {[%emt 0:03:04]} Qh6 {[%emt 0:02:59]} 30. Rg6 {[%emt 0:02:33]} Qh5 {[%emt 0:01:17]} 31. Rxg7 {[%emt 0:01:26]} Rxg7 {[%emt 0:00:11]} 32. Rg1 {[%emt 0:03:05]} Nf6 {[%emt 0:03:28]} 33. Rg5 {[%emt 0:01:09]} Qh7 {[%emt 0:04:00]} 34. Qg1 {[%emt 0:01:38]} Kg8 {[%emt 0:00:35]} 35. Ng6 {[%emt 0:01:38]} Ne4 {[%emt 0:00:37]} 36. Ne7+ {[%emt 0:00:08]} Kf7 {[%emt 0:00:33]} 37. Rxg7+ {[%emt 0:00:16]} Qxg7 {[%emt 0:00:04]} 38. Qxg7+ {[%emt 0:00:05]} Kxg7 {[%emt 0:00:08]} 39. Nxf5+ {[%emt 0:00:03]} Kf6 {[%emt 0:00:23]} 40. Nxh4 {[%emt 0:00:04]} Nf2 {[%emt 0:00:35]} 41. Kd2 {[%emt 0:15:28]} Ng4 {[%emt 0:00:33]} 42. h3 {[%emt 0:00:09]} Nf2 {[%emt 0:00:29]} 43. Ke2 {[%emt 0:00:13]} Nxh3 {[%emt 0:00:32]} 44. Ke3 {[%emt 0:00:08]} a6 {[%emt 0:01:17]} 45. a4 {[%emt 0:00:19]} a5 {[%emt 0:00:20]} 46. b3 {[%emt 0:00:54]} Ng1 {[%emt 0:00:14]} 47. Nf3 {[%emt 0:08:51]} Nh3 {[%emt 0:00:15]} 48. Ng5 {[%emt 0:05:41]} Nxg5 {[%emt 0:01:33]} 49. fxg5+ {[%emt 0:00:01]} Kxg5 {[%emt 0:00:10]} 50. d6 {[%emt 0:00:31]} cxd6 {[%emt 0:01:34]} 51. Ke4 {[%emt 0:00:00]} Kf6 {[%emt 0:02:20]} 52. Kd5 {[%emt 0:00:04]} Ke7 {[%emt 0:00:21]} 53. Kc6 {[%emt 0:00:03]} Ke6 {[%emt 0:00:13]} 54. Kxb6 {[%emt 0:00:13]} Kd7 {[%emt 0:01:49]} 55. Kxa5 {[%emt 0:03:06]} Kc6 {[%emt 0:00:26]} 56. Ka6 {[%emt 0:00:01]} d5 {[%emt 0:02:50]} 57. cxd5+ {[%emt 0:00:05]} Kxd5 {[%emt 0:00:05]} 58. Kb5 {[%emt 0:00:22]} 1-0

[Event "22nd Hoogeveen Open 2018"]
[Site "Hoogeveen"]
[Date "2018.10.22"]
[Round "4"]
[White "Li, Henry"]
[Black "Van Dorp, Folke"]
[Result "1/2-1/2"]
[ECO "C41"]
[WhiteElo "2207"]
[BlackElo "2097"]
[Annotator "NA"]
[PlyCount "71"]
[EventDate "2018.10.20"]
[EventType "swiss"]
[EventCountry "NED"]
[SourceTitle "playchess.com"]
[Source "ChessBase"]
[SourceQuality "1"]
[TimeControl "40/5400+30:1800+30"]

1. e4 {[%emt 0:00:00]} d6 {[%emt 0:00:00]} 2. d4 {[%emt 0:00:00]} Nf6 {[%emt 0:00:00]} 3. Nc3 {[%emt 0:00:07]} e5 {[%emt 0:00:00]} 4. Nf3 {[%emt 0:00:34]} Nbd7 {[%emt 0:00:06]} 5. Bc4 {[%emt 0:00:37]} Be7 {[%emt 0:00:07]} 6. O-O {[%emt 0:00:37]} Nb6 {[%emt 0:00:13] C41: Philidor Defence} (6... O-O 7. Re1 c6 8. a4 a5 9. h3 Re8 10. Ba2 Bf8 11. Be3 Qc7 12. Ng5 Re7 13. f4 b6 14. fxe5 dxe5 15. d5 cxd5 16. exd5 {1-0 (16) Wang,H (2709)-Ivanchuk,V (2726) Huaian 2017}) 7. Be2 {[%emt 0:09:54]} exd4 {[%emt 0:00:35]} 8. Nxd4 {[%emt 0:01:12]} O-O {[%emt 0:00:07]} 9. a4 {[%emt 0:01:04]} a5 {[%emt 0:00:06]} 10. Re1 {[%emt 0:00:58]} Re8 {[%emt 0:00:40]} 11. h3 {[%emt 0:00:33]} Bf8 {[%emt 0:01:54]} 12. Bf1 {[%emt 0:01:19]} c6 {[%emt 0:02:12]} 13. Bg5 {[%emt 0:03:22] [#]} h6 $146 {[%emt 0:02:14]} ({Predecessor:} 13... Nbd7 14. Nf3 {½-½ (26) Zelcic,R (2532)-Jovanovic,Z (2529) Bol 2013}) 14. Bf4 {[%emt 0:01:13]} Nbd7 {[%emt 0:04:39]} 15. Qd2 {[%emt 0:17:35]} Nc5 {[%emt 0:07:29]} 16. f3 {[%emt 0:05:49]} Ne6 {[%emt 0:04:21]} 17. Be3 {[%emt 0:04:17]} Nxd4 {[%emt 0:13:00]} 18. Bxd4 {[%emt 0:00:21]} Be6 {[%emt 0:00:50]} 19. Rad1 {[%emt 0:00:55]} d5 {[%emt 0:05:21]} 20. Qf4 {[%emt 0:05:26]} dxe4 {[%emt 0:06:42]} 21. Bxf6 {[%emt 0:07:07]} Qxf6 {[%emt 0:00:04]} 22. Qxf6 {[%emt 0:00:12]} gxf6 {[%emt 0:00:05]} 23. Nxe4 {[%emt 0:00:32]} Kg7 $11 {[%emt 0:03:55]} 24. Bd3 {[%emt 0:03:40]} f5 {[%emt 0:01:23]} 25. Ng3 {[%emt 0:00:48]} Kf6 {[%emt 0:03:10]} 26. h4 {[%emt 0:01:38]} Bc5+ {[%emt 0:05:55]} 27. Kf1 {[%emt 0:00:40]} Rad8 {[%emt 0:05:19]} 28. Nh5+ {[%emt 0:02:29]} Kg6 {[%emt 0:00:24]} 29. g4 {[%emt 0:01:39]} Rg8 {[%emt 0:02:54]} 30. Re5 {[%emt 0:04:36]} Rxd3 {[%emt 0:01:52]} 31. Rxd3 {[%emt 0:08:35]} b6 {[%emt 0:06:02]} 32. Rxc5 {[%emt 0:12:23]} bxc5 {[%emt 0:00:02]} 33. Rd6 {[%emt 0:00:17]} fxg4 {[%emt 0:00:48]} 34. fxg4 {[%emt 0:00:36]} Rb8 {[%emt 0:04:07]} 35. Rxc6 {[%emt 0:01:40]} Rb4 {[%emt 0:01:36]} 36. Ng3 {[%emt 0:03:01]} 1/2-1/2

[Event "22nd Hoogeveen Open 2018"]
[Site "Hoogeveen"]
[Date "2018.10.22"]
[Round "4"]
[White "Giacomini, Hector"]
[Black "Van der Hagen, Loek"]
[Result "1-0"]
[ECO "A48"]
[WhiteElo "2178"]
[BlackElo "1820"]
[Annotator "NA"]
[PlyCount "59"]
[EventDate "2018.10.20"]
[EventType "swiss"]
[EventCountry "NED"]
[SourceTitle "playchess.com"]
[Source "ChessBase"]
[SourceQuality "1"]
[TimeControl "40/5400+30:1800+30"]

1. Nf3 {[%emt 0:00:00]} Nf6 {[%emt 0:00:00]} 2. e3 {[%emt 0:00:00]} g6 {[%emt 0:00:40]} 3. d4 {[%emt 0:00:00]} Bg7 {[%emt 0:00:11]} 4. Bd3 {[%emt 0:00:00]} d6 {[%emt 0:00:55]} 5. O-O {[%emt 0:00:09]} O-O {[%emt 0:00:06]} 6. Nbd2 {[%emt 0:00:22]} Nbd7 {[%emt 0:01:27]} 7. c3 {[%emt 0:00:49]} e5 {[%emt 0:03:06]} 8. e4 {[%emt 0:00:04]} Nh5 {[%emt 0:05:26]} 9. Nb3 {[%emt 0:02:31]} Qe8 {[%emt 0:06:54]} 10. Re1 {[%emt 0:00:53]} f5 {[%emt 0:04:04]} 11. exf5 {[%emt 0:19:34]} gxf5 {[%emt 0:00:18]} 12. Bc4+ {[%emt 0:00:20]} Kh8 {[%emt 0:01:45]} 13. Ng5 {[%emt 0:00:36]} Nb6 {[%emt 0:05:14]} 14. Bf7 {[%emt 0:00:48]} Rxf7 {[%emt 0:00:26]} 15. Qxh5 {[%emt 0:00:06]} Kg8 {[%emt 0:14:24]} 16. Qxh7+ {[%emt 0:00:39]} Kf8 {[%emt 0:00:12]} 17. Nxf7 {[%emt 0:00:16]} Qxf7 {[%emt 0:00:13]} 18. Bh6 {[%emt 0:00:33]} Qg8 {[%emt 0:02:56]} 19. Bxg7+ {[%emt 0:00:47]} Qxg7 {[%emt 0:00:12]} 20. Qxg7+ {[%emt 0:00:12]} Kxg7 {[%emt 0:00:07]} 21. dxe5 {[%emt 0:00:03]} dxe5 {[%emt 0:02:11]} 22. Rxe5 {[%emt 0:00:07]} Kf6 {[%emt 0:01:00]} 23. Rae1 {[%emt 0:01:27]} Bd7 {[%emt 0:00:42]} 24. Nc5 {[%emt 0:04:02]} Bc6 {[%emt 0:02:09]} 25. Re6+ {[%emt 0:03:37]} Kg5 {[%emt 0:05:02]} 26. R1e3 {[%emt 0:03:11]} Nd5 {[%emt 0:00:00]} 27. Rg3+ {[%emt 0:00:20]} Kh5 {[%emt 0:00:00]} 28. Nd3 {[%emt 0:03:22]} Rd8 {[%emt 0:00:00]} 29. c4 {[%emt 0:01:06]} f4 {[%emt 0:02:12]} 30. Rh3+ {[%emt 0:02:55]} 1-0

[Event "22nd Hoogeveen Open 2018"]
[Site "Hoogeveen"]
[Date "2018.10.22"]
[Round "4"]
[White "Hulshof, Peter"]
[Black "Maters, Arthur"]
[Result "1-0"]
[ECO "B25"]
[WhiteElo "2168"]
[BlackElo "1933"]
[Annotator "NA"]
[PlyCount "87"]
[EventDate "2018.10.20"]
[EventType "swiss"]
[EventCountry "NED"]
[SourceTitle "playchess.com"]
[Source "ChessBase"]
[SourceQuality "1"]
[TimeControl "40/5400+30:1800+30"]

1. e4 {[%emt 0:00:00]} c5 {[%emt 0:00:00]} 2. Nc3 {[%emt 0:00:00]} d6 {[%emt 0:00:00]} 3. d3 {[%emt 0:00:00]} g6 {[%emt 0:00:00]} 4. g3 {[%emt 0:00:07]} Bg7 {[%emt 0:00:00]} 5. Bg2 {[%emt 0:00:08]} Nc6 {[%emt 0:00:01]} 6. f4 {[%emt 0:00:15]} e6 {[%emt 0:00:06]} 7. Nf3 {[%emt 0:00:06]} Nge7 {[%emt 0:00:06]} 8. O-O {[%emt 0:00:08]} O-O {[%emt 0:00:08]} 9. Bd2 {[%emt 0:03:40]} Rb8 {[%emt 0:04:43]} 10. Rb1 {[%emt 0:01:12]} b5 {[%emt 0:02:16]} 11. a3 {[%emt 0:00:14]} a5 {[%emt 0:01:58]} 12. a4 {[%emt 0:00:20]} b4 {[%emt 0:01:07]} 13. Nb5 {[%emt 0:00:51]} Ba6 {[%emt 0:02:17]} 14. c4 {[%emt 0:00:11]} Bxb5 {[%emt 0:01:14]} 15. axb5 {[%emt 0:02:55]} Nd4 {[%emt 0:00:12]} 16. Be3 {[%emt 0:03:41]} Qb6 {[%emt 0:06:03]} 17. Nxd4 {[%emt 0:02:49]} Bxd4 {[%emt 0:00:51]} 18. Bxd4 {[%emt 0:00:07]} cxd4 {[%emt 0:00:07]} 19. Ra1 {[%emt 0:17:00]} Ra8 {[%emt 0:02:34]} 20. f5 {[%emt 0:04:38]} exf5 {[%emt 0:02:41]} 21. exf5 {[%emt 0:00:09]} Nxf5 {[%emt 0:00:08]} 22. Rxf5 {[%emt 0:09:26]} gxf5 {[%emt 0:00:24]} 23. Bxa8 {[%emt 0:03:50]} Rxa8 {[%emt 0:00:15]} 24. Qf3 {[%emt 0:00:14]} Re8 {[%emt 0:06:19]} 25. Qxf5 {[%emt 0:02:01]} Qb7 {[%emt 0:04:47]} 26. Rf1 {[%emt 0:04:49]} Re5 {[%emt 0:28:44]} 27. Qg4+ {[%emt 0:05:57]} Kf8 {[%emt 0:00:14]} 28. Qxd4 {[%emt 0:07:39]} Qd7 {[%emt 0:01:14]} 29. Qh4 {[%emt 0:08:33]} a4 {[%emt 0:03:06]} 30. d4 {[%emt 0:05:34]} Re2 {[%emt 0:03:14]} 31. Qxh7 {[%emt 0:07:19]} Qe6 {[%emt 0:03:29]} 32. Qh8+ {[%emt 0:00:24]} Ke7 {[%emt 0:00:08]} 33. Qh4+ {[%emt 0:00:37]} Kd7 {[%emt 0:03:49]} 34. Qf4 {[%emt 0:02:33]} Qxc4 {[%emt 0:02:01]} 35. Qxf7+ {[%emt 0:00:54]} Qxf7 {[%emt 0:00:09]} 36. Rxf7+ {[%emt 0:00:01]} Kc8 {[%emt 0:00:10]} 37. h4 {[%emt 0:02:51]} a3 {[%emt 0:00:39]} 38. bxa3 {[%emt 0:00:48]} bxa3 {[%emt 0:00:27]} 39. Ra7 {[%emt 0:01:15]} a2 {[%emt 0:00:16]} 40. h5 {[%emt 0:01:45]} Rb2 {[%emt 0:00:05]} 41. h6 {[%emt 0:31:15]} Rb1+ {[%emt 0:32:16]} 42. Kg2 {[%emt 0:00:22]} Rb2+ {[%emt 0:00:40]} 43. Kh3 {[%emt 0:00:00]} Rxb5 {[%emt 0:00:00]} 44. Kg4 {[%emt 0:00:00]} 1-0

[Event "22nd Hoogeveen Open 2018"]
[Site "Hoogeveen"]
[Date "2018.10.22"]
[Round "4"]
[White "Ingebretsen, Jens E"]
[Black "Warakomska, Anna"]
[Result "1-0"]
[ECO "B47"]
[WhiteElo "2160"]
[BlackElo "2293"]
[Annotator "NA"]
[PlyCount "100"]
[EventDate "2018.10.20"]
[EventType "swiss"]
[EventCountry "NED"]
[SourceTitle "playchess.com"]
[Source "ChessBase"]
[SourceQuality "1"]
[TimeControl "40/5400+30:1800+30"]

1. e4 {[%emt 0:07:16]} c5 {[%emt 0:00:00]} 2. Nf3 {[%emt 0:00:15]} e6 {[%emt 0:00:00]} 3. d4 {[%emt 0:00:34]} cxd4 {[%emt 0:00:00]} 4. Nxd4 {[%emt 0:00:04]} Nc6 {[%emt 0:00:00]} 5. Nc3 {[%emt 0:00:05]} Qc7 {[%emt 0:00:00]} 6. g3 {[%emt 0:00:09]} a6 {[%emt 0:00:29]} 7. Bg2 {[%emt 0:00:04]} Nf6 {[%emt 0:00:35]} 8. O-O {[%emt 0:00:07]} Nxd4 {[%emt 0:01:12]} 9. Qxd4 {[%emt 0:00:03]} Bc5 {[%emt 0:00:24]} 10. Bf4 {[%emt 0:00:06]} d6 {[%emt 0:00:27]} 11. Qd2 {[%emt 0:01:30]} h6 {[%emt 0:02:15]} 12. Rad1 {[%emt 0:00:10]} e5 {[%emt 0:01:09]} 13. Be3 {[%emt 0:00:06]} Be6 {[%emt 0:00:40] B47: Sicilian: Taimanov: 5 Nc3 Qc7 6 f4, 6 g3 and 6 Be2} 14. Bxc5 {[%emt 0:00:55]} dxc5 {[%emt 0:00:05]} 15. f4 {[%emt 0:00:41]} (15. Nd5 Bxd5 16. exd5 O-O 17. d6 Qb6 18. c4 Rad8 19. Rfe1 Rfe8 20. Bh3 Nh7 21. f4 {1-0 (60) Vidit,S (2715)-Van Foreest,J (2629) Riadh 2017}) 15... O-O {[%emt 0:07:22]} 16. Nd5 {[%emt 0:00:24]} Bxd5 {[%emt 0:00:39]} 17. exd5 {[%emt 0:00:02]} Qd6 {[%emt 0:03:47]} 18. fxe5 {[%emt 0:03:25]} Qxe5 {[%emt 0:00:50]} 19. d6 {[%emt 0:01:13]} Qxb2 {[%emt 0:02:28]} 20. d7 {[%emt 0:02:06]} Rad8 $11 {[%emt 0:12:25]} ({Predecessor:} 20... Rfd8 21. Bh3 {1-0 (33) Purgar,I (2200)-Puuska,H (1947) Heraklio 2017}) 21. Bh3 {[%emt 0:03:10]} Ne4 {[%emt 0:20:44]} 22. Qe3 {[%emt 0:10:23]} Ng5 {[%emt 0:03:17]} 23. Bf5 {[%emt 0:01:11]} Qb6 {[%emt 0:02:52]} 24. Rd5 {[%emt 0:05:18]} Ne6 {[%emt 0:05:56]} 25. c3 {[%emt 0:02:54]} Qc6 {[%emt 0:06:33]} 26. Rfd1 {[%emt 0:07:24]} c4 {[%emt 0:02:37]} 27. g4 {[%emt 0:05:05]} b6 {[%emt 0:04:59]} 28. h4 {[%emt 0:04:59]} Nc5 {[%emt 0:02:51]} 29. Rd6 {[%emt 0:01:56]} Qc7 {[%emt 0:05:28]} 30. g5 {[%emt 0:04:20]} Nd3 {[%emt 0:04:19]} 31. Qxb6 {[%emt 0:03:41]} Qxb6+ {[%emt 0:00:34]} 32. Rxb6 {[%emt 0:00:03]} Ne5 {[%emt 0:00:20]} 33. Kg2 {[%emt 0:01:22]} g6 {[%emt 0:01:58]} 34. Bh3 {[%emt 0:00:20]} hxg5 {[%emt 0:02:04]} 35. hxg5 {[%emt 0:00:16]} Nd3 {[%emt 0:00:19]} 36. Kg3 {[%emt 0:01:26]} Rb8 {[%emt 0:02:32]} 37. Rdb1 {[%emt 0:02:18]} Rxb6 {[%emt 0:00:40]} 38. Rxb6 {[%emt 0:00:02]} Rd8 {[%emt 0:00:08]} 39. Rxa6 {[%emt 0:05:17]} Kf8 {[%emt 0:00:07]} 40. Rc6 {[%emt 0:09:14]} Ne5 {[%emt 0:02:22]} 41. Rc7 {[%emt 0:30:38]} Ke7 {[%emt 0:05:08]} 42. Kf4 {[%emt 0:00:00]} f6 {[%emt 0:04:57]} 43. gxf6+ {[%emt 0:00:00]} Kxf6 {[%emt 0:00:14]} 44. Rc8 {[%emt 0:00:00]} g5+ {[%emt 0:02:31]} 45. Ke4 {[%emt 0:00:00]} Nf7 {[%emt 0:00:03]} 46. Kd5 {[%emt 0:00:00]} Ke7 {[%emt 0:01:05]} 47. a4 {[%emt 0:00:00]} Nh6 {[%emt 0:01:29]} 48. Be6 {[%emt 0:00:00]} Nf7 {[%emt 0:02:55]} 49. a5 {[%emt 0:00:00]} g4 {[%emt 0:04:15]} 50. Bxg4 {[%emt 0:00:00]} Nd6 {[%emt 0:00:07] Ke4 [%emt 00:02:07]} 1-0

[Event "22nd Hoogeveen Open 2018"]
[Site "Hoogeveen"]
[Date "2018.10.22"]
[Round "4"]
[White "Biermann, Lenhard"]
[Black "Shakhverdian, William"]
[Result "1/2-1/2"]
[ECO "A49"]
[WhiteElo "2153"]
[BlackElo "1903"]
[Annotator "NA"]
[PlyCount "84"]
[EventDate "2018.10.20"]
[EventType "swiss"]
[EventCountry "NED"]
[SourceTitle "playchess.com"]
[Source "ChessBase"]
[SourceQuality "1"]
[TimeControl "40/5400+30:1800+30"]

1. d4 {[%emt 0:00:00]} Nf6 {[%emt 0:00:00]} 2. Nf3 {[%emt 0:00:00]} g6 {[%emt 0:00:00]} 3. g3 {[%emt 0:00:00]} Bg7 {[%emt 0:00:00]} 4. Bg2 {[%emt 0:00:00]} O-O {[%emt 0:00:00]} 5. O-O {[%emt 0:00:00]} d6 {[%emt 0:00:03]} 6. a4 {[%emt 0:00:00]} a5 {[%emt 0:00:26]} 7. c3 {[%emt 0:04:55]} c6 {[%emt 0:08:14]} 8. Nbd2 {[%emt 0:00:31]} Nbd7 {[%emt 0:01:45]} 9. e4 {[%emt 0:01:19]} e5 {[%emt 0:00:21]} 10. Qc2 {[%emt 0:00:54]} Qc7 {[%emt 0:00:38]} 11. b3 {[%emt 0:06:50]} d5 {[%emt 0:04:19]} 12. exd5 {[%emt 0:11:06]} Nxd5 {[%emt 0:03:09]} 13. Bb2 {[%emt 0:02:53]} exd4 {[%emt 0:02:46]} 14. Nxd4 {[%emt 0:00:50]} N7f6 {[%emt 0:08:31]} 15. Nc4 {[%emt 0:06:37]} Re8 {[%emt 0:00:40]} 16. Ba3 {[%emt 0:06:02]} Bf8 $11 {[%emt 0:01:14]} 17. Bxf8 {[%emt 0:02:01]} Kxf8 {[%emt 0:00:17]} 18. Rfe1 {[%emt 0:01:12]} Bd7 {[%emt 0:01:45]} 19. Nd2 {[%emt 0:06:12]} Rxe1+ {[%emt 0:12:33]} 20. Rxe1 {[%emt 0:00:06]} Re8 {[%emt 0:00:25]} 21. Rxe8+ {[%emt 0:02:09]} Bxe8 {[%emt 0:01:30]} 22. c4 {[%emt 0:02:14]} Nb4 {[%emt 0:03:11]} 23. Qc3 {[%emt 0:01:57]} Qe7 {[%emt 0:01:26]} 24. N4f3 {[%emt 0:03:17]} c5 {[%emt 0:30:26]} 25. Ng5 {[%emt 0:13:55]} Qe1+ {[%emt 0:02:09]} 26. Bf1 {[%emt 0:00:08]} Ng4 {[%emt 0:02:44]} 27. Nge4 {[%emt 0:01:49]} Nc6 {[%emt 0:05:10]} 28. Qh8+ {[%emt 0:08:35]} Ke7 {[%emt 0:00:04]} 29. h3 {[%emt 0:00:10]} Nge5 {[%emt 0:04:05]} 30. Qf6+ {[%emt 0:00:19]} Kf8 {[%emt 0:01:10]} 31. Ng5 {[%emt 0:01:47]} Nd7 {[%emt 0:01:07]} 32. Qf4 {[%emt 0:02:29]} Kg7 {[%emt 0:01:21]} 33. Ndf3 {[%emt 0:00:47]} Qa1 {[%emt 0:00:26]} 34. Qe3 {[%emt 0:03:01]} Nce5 {[%emt 0:01:01]} 35. Kg2 {[%emt 0:01:25]} h6 {[%emt 0:00:50]} 36. Ne4 {[%emt 0:00:10]} Nxf3 {[%emt 0:01:07]} 37. Qxf3 {[%emt 0:00:04]} Qe5 {[%emt 0:00:28]} 38. Kh2 {[%emt 0:02:23]} Nf6 {[%emt 0:01:28]} 39. Nxf6 {[%emt 0:01:54]} Qxf6 {[%emt 0:00:05]} 40. Qe3 {[%emt 0:00:21]} Bc6 {[%emt 0:00:43]} 41. Bg2 {[%emt 0:30:04]} Bxg2 {[%emt 0:32:10]} 42. Kxg2 {[%emt 0:00:02]} b6 {[%emt 0:00:15]} 1/2-1/2

[Event "22nd Hoogeveen Open 2018"]
[Site "Hoogeveen"]
[Date "2018.10.22"]
[Round "4"]
[White "Dev, Shah"]
[Black "Boghossian, Wahe"]
[Result "1-0"]
[ECO "A70"]
[WhiteElo "2146"]
[BlackElo "1748"]
[Annotator "NA"]
[PlyCount "83"]
[EventDate "2018.10.20"]
[EventType "swiss"]
[EventCountry "NED"]
[SourceTitle "playchess.com"]
[Source "ChessBase"]
[SourceQuality "1"]
[TimeControl "40/5400+30:1800+30"]

1. d4 {[%emt 0:00:21]} Nf6 {[%emt 0:00:00]} 2. c4 {[%emt 0:00:04]} e6 {[%emt 0:00:00]} 3. Nc3 {[%emt 0:00:07]} c5 {[%emt 0:00:16]} 4. d5 {[%emt 0:00:58]} exd5 {[%emt 0:00:23]} 5. cxd5 {[%emt 0:00:02]} d6 {[%emt 0:00:27]} 6. e4 {[%emt 0:01:12]} g6 {[%emt 0:00:19]} 7. Nf3 {[%emt 0:00:44]} Bg7 {[%emt 0:00:30]} 8. h3 {[%emt 0:00:21]} O-O {[%emt 0:01:01]} 9. Bd3 {[%emt 0:00:05]} Re8 {[%emt 0:00:46]} 10. O-O {[%emt 0:00:41]} a6 {[%emt 0:01:14]} 11. a4 {[%emt 0:00:27]} Nbd7 {[%emt 0:03:03]} 12. Nd2 {[%emt 0:10:23]} Rb8 {[%emt 0:07:10]} 13. a5 {[%emt 0:01:54]} b6 {[%emt 0:09:19]} 14. axb6 {[%emt 0:13:38]} Nxb6 {[%emt 0:02:53]} 15. f4 {[%emt 0:07:48]} Nh5 {[%emt 0:14:15]} 16. Nf3 {[%emt 0:06:37]} Ng3 {[%emt 0:12:15]} 17. Re1 {[%emt 0:01:15]} h5 {[%emt 0:03:29]} 18. Kh2 {[%emt 0:14:00]} h4 {[%emt 0:01:55]} 19. Ng5 {[%emt 0:04:48]} Bd4 {[%emt 0:17:13]} 20. Be3 {[%emt 0:09:20]} Qf6 {[%emt 0:06:20]} 21. Bd2 {[%emt 0:09:21]} Bf2 {[%emt 0:01:42]} 22. e5 {[%emt 0:00:47]} dxe5 {[%emt 0:07:35]} 23. Nge4 {[%emt 0:03:12]} Nxe4 {[%emt 0:00:01]} 24. Nxe4 {[%emt 0:00:02]} Bg3+ {[%emt 0:00:02]} 25. Kh1 {[%emt 0:06:37]} Qd8 {[%emt 0:02:35]} 26. fxe5 {[%emt 0:01:58]} Bxe5 {[%emt 0:00:58]} 27. Bg5 {[%emt 0:00:29]} Qd7 {[%emt 0:01:21]} 28. Bf6 {[%emt 0:01:46]} Nxd5 {[%emt 0:04:49]} 29. Bxe5 {[%emt 0:01:58]} Rxe5 {[%emt 0:00:03]} 30. Nf6+ {[%emt 0:00:33]} Nxf6 {[%emt 0:00:08]} 31. Rxe5 {[%emt 0:00:14]} Rxb2 {[%emt 0:00:18]} 32. Re2 {[%emt 0:03:14]} Rb4 {[%emt 0:01:43]} 33. Rf2 {[%emt 0:00:55]} Rd4 {[%emt 0:01:31]} 34. Qf3 {[%emt 0:00:34]} Nh5 {[%emt 0:00:53]} 35. Bxg6 {[%emt 0:00:30]} Ng3+ {[%emt 0:00:29]} 36. Kg1 {[%emt 0:00:16]} Bb7 {[%emt 0:00:31]} 37. Bxf7+ {[%emt 0:00:43]} Kf8 {[%emt 0:00:31]} 38. Qf6 {[%emt 0:00:31]} Rd1+ {[%emt 0:00:22]} 39. Kh2 {[%emt 0:00:01]} Nf1+ {[%emt 0:00:39]} 40. Rxf1 {[%emt 0:00:20]} Rxf1 {[%emt 0:00:22]} 41. Rxf1 {[%emt 0:30:15]} Qc7+ {[%emt 0:30:28]} 42. Kg1 {[%emt 0:00:12]} 1-0